fUSD/lending_fUSD_20240813
["ID","MTS","AMOUNT","RATE_DAILY","PERIOD"]
[334789211,1723567832886,-420.0,0.00010957,2]
[334789212,1723567832895,-250.0,0.00010959,2]
[334789213,1723567832904,-155.16146089,0.00010973,2]
[334789214,1723567832913,-622.0,0.00010979,2]
[334789215,1723567832922,-649.757,0.00010979,2]
[334789216,1723567832931,-1257.0,0.00010979,2]
[334789217,1723567832941,-1924.0,0.00010979,2]
[334789218,1723567832951,-810.0,0.00010979,2]
[334789219,1723567832960,-446.0,0.00010979,2]
[334789220,1723567832969,-1137.0,0.00010979,2]
[334789221,1723567832978,-150.0,0.00010979,2]
[334789222,1723567832987,-556.0,0.00010979,2]
[334789223,1723567832997,-1895.0,0.00010979,2]
[334789224,1723567833006,-551.0,0.00010979,2]
[334789225,1723567833016,-150.0,0.00010979,2]
[334789226,1723567833025,-3291.0,0.00010979,2]
[334789227,1723567833035,-247.0,0.00010979,2]
[334789228,1723567833046,-1673.0,0.00010979,2]
[334789229,1723567833055,-5134.0,0.00010979,2]
[334789230,1723567833066,-5071.607,0.00010979,2]
[334789231,1723567833076,-156.12,0.0001098,2]
[334789232,1723567833086,-12213.4617315,0.00010983,2]
[334789233,1723567833096,-59163.4471399,0.00010983,2]
[334789234,1723567833106,-22604.21973975,0.00010989,2]
[334789235,1723567833115,-335756.12930857,0.0001099,2]
[334789236,1723567833128,-54000.0,0.0001099,2]
[334789237,1723567833152,-1219.59443092,0.0001099,2]
[334789238,1723567833164,-683.26256191,0.0001099,2]
[334789239,1723567833176,-12105.326971,0.0001099,2]
[334789240,1723567833188,-2036.96916468,0.0001099,2]
[334789241,1723567833200,-685.05424735,0.0001099,2]
[334789242,1723567833211,-548.16321584,0.0001099,2]
[334789243,1723567834149,5766.34,9.639e-05,2]
[334789256,1723567838384,-1795.89539502,9.85e-05,2]
[334789257,1723567838394,-4202.70460498,0.00010435,2]
[334789258,1723567838768,-5797.29539502,0.00010435,2]
[334789259,1723567838778,-10000.0,0.00010435,2]
[334789260,1723567838787,-45002.70460498,0.0001099,2]
[334789261,1723567838801,-6119.2127705,0.0001099,2]
[334789262,1723567838813,-25907.60000001,0.0001099,2]
[334789263,1723567838824,-1279.7631426,0.0001099,2]
[334789264,1723567838840,-9427.25431199,0.0001099,2]
[334789283,1723567840401,-281.714125,0.00010435,2]
[334789284,1723567840413,-54617.48966759,0.0001099,2]
[334789285,1723567840423,-156.12,0.0001099,2]
[334789286,1723567840432,-156.12,0.0001099,2]
[334789287,1723567840442,-156.12,0.0001099,2]
[334789288,1723567840453,-156.12,0.0001099,2]
[334789289,1723567840463,-156.12,0.0001099,2]
[334789290,1723567840473,-156.12,0.0001099,2]
[334789291,1723567840483,-156.12,0.0001099,2]
[334789292,1723567840612,-156.12,0.0001099,2]
[334789293,1723567840621,-3934.1905019,0.00010998,2]
[334789294,1723567840631,-7092.4372215,0.00010998,2]
[334789295,1723567840641,-8176.04654029,0.00010999,2]
[334789296,1723567840650,-106078.52684705,0.00011,2]
[334789297,1723567840659,-112423.64150509,0.00011,2]
[334789298,1723567842799,-352.65934478,0.000108,2]
[334789299,1723567842814,-323.62335522,0.000108,2]
[334789300,1723567842823,-143.26038394,0.00010998,2]
[334789301,1723567842842,-3383.28435976,0.00010998,2]
[334789302,1723567842851,-1188.67756589,0.00011,2]
[334789308,1723567843146,-116263.01460234,0.00011,2]
[334789310,1723567843156,-14138.29,0.00011,2]
[334789312,1723567843166,-2733457.08290663,0.00011,2]
[334789315,1723567843176,-1702.635379,0.00011,2]
[334789318,1723567843185,-372.14812752,0.00011,2]
[334789321,1723567843195,-3592912.20991892,0.00011,2]
[334789345,1723567843411,-2819.34072903,0.00010435,2]
[334789346,1723567843421,-2710.76674644,0.00011,2]
[334789347,1723567843432,-60669.254662,0.00011,2]
[334789359,1723567844244,-1061.28,0.00011,2]
[334789360,1723567844260,-745.08646596,0.00011,2]
[334789361,1723567844278,-6016.2,0.00011,2]
[334789385,1723567847411,-200.0,0.00010973,2]
[334789386,1723567847421,-500.0,0.00010989,2]
[334789387,1723567847432,-500.0,0.00010989,2]
[334789388,1723567847443,-176.71294064,0.00010989,2]
[334789389,1723567847453,-500.0,0.00010989,2]
[334789390,1723567847463,-500.0,0.00010989,2]
[334789391,1723567847473,-64.65224856,0.00010989,2]
[334789392,1723567847502,-435.34775144,0.00010989,2]
[334789393,1723567847512,-473.59694452,0.00010989,2]
[334789394,1723567847523,-26.40305548,0.00010989,2]
[334789395,1723567847533,-500.0,0.00010989,2]
[334789396,1723567847543,-500.0,0.00010989,2]
[334789397,1723567847557,-497.78522446,0.00010989,2]
[334789398,1723567847569,-2.21477554,0.00010989,2]
[334789399,1723567847580,-1352.16255012,0.00011,2]
[334789400,1723567847604,-5625.78040334,0.00011,2]
[334789401,1723567847621,-602297.7587507,0.00011,2]
[334789402,1723567847633,-484373.74614807,0.00011,2]
[334789403,1723567847645,-4913.22635369,0.00011,2]
[334789404,1723567847657,-3032.5,0.00011,2]
[334789713,1723568134573,263.18,8.219e-05,2]
[334789717,1723568172989,227.78421077,8.219e-05,2]
[334789718,1723568173969,1274.99398232,8.219e-05,2]
[334789719,1723568185230,155.1742779,8.219e-05,10]
[334789720,1723568259428,227.78421077,8.219e-05,2]
[334789721,1723568757186,260.32,8.219e-05,2]
[334789723,1723568889922,3284.640274,9.617e-05,2]
[334789728,1723569008590,186.3894,9.557e-05,2]
[334789745,1723569031496,-300.0,9.666e-05,2]
[334789746,1723569031506,-645.20479722,9.667e-05,2]
[334789747,1723569031516,-10174.28661659,9.667e-05,2]
[334789748,1723569031553,-1151.91509529,9.667e-05,2]
[334789749,1723569031565,-1440.43885463,9.667e-05,2]
[334789750,1723569031576,-706.11031433,9.667e-05,2]
[334789751,1723569031670,-5884.36432194,9.667e-05,2]
[334789752,1723569031681,-1039.32,9.693e-05,2]
[334789753,1723569031690,-1358.55,9.699e-05,2]
[334789754,1723569031699,-226.57,9.796e-05,2]
[334789755,1723569031708,-174.45,9.798e-05,2]
[334789756,1723569031718,-1259.1,9.799e-05,2]
[334789757,1723569031729,-335.58,9.799e-05,2]
[334789759,1723569031741,-250.0,9.799e-05,2]
[334789760,1723569031750,-216.0,9.799e-05,2]
[334789762,1723569031763,-784.0,9.887e-05,2]
[334789764,1723569031773,-170.39,9.911e-05,2]
[334789766,1723569031782,-168.97,9.911e-05,2]
[334789767,1723569031791,-499.99,9.935e-05,2]
[334789769,1723569031802,-720.05251311,0.0001,2]
[334789770,1723569031811,-2115.67897635,0.0001,2]
[334789772,1723569031820,-531.02,0.0001032,2]
[334789773,1723569031829,-530.72,0.0001032,2]
[334789774,1723569031841,-260.32,0.00010464,2]
[334789775,1723569031851,-712.98,0.00010478,2]
[334789776,1723569031860,-531.02,0.00010478,2]
[334789777,1723569031869,-300.0,0.00010478,2]
[334789778,1723569031878,-150.0,0.00010478,2]
[334789779,1723569031887,-420.0,0.00010633,2]
[334789780,1723569031895,-150.0,0.00010782,2]
[334789781,1723569031904,-1636.31377617,0.00010783,2]
[334789782,1723569031929,-246.1,0.00010783,2]
[334789783,1723569031940,-627.85298596,0.00010783,2]
[334789786,1723569037650,-296.10836444,0.00010783,2]
[334789788,1723569037661,-5533.35431226,0.00010783,2]
[334789790,1723569037672,-308.37549499,0.00010783,2]
[334789794,1723569037711,-3734.90056618,0.00010783,2]
[334789795,1723569037721,-444.5299,0.00010783,2]
[334789796,1723569037730,-541.6496,0.00010783,2]
[334789797,1723569037740,-1568.47196346,0.00010783,2]
[334789798,1723569037752,-3245.65367065,0.00010783,2]
[334789799,1723569037827,-1911.64703841,0.00010783,2]
[334789800,1723569037840,-13851.50797085,0.00010783,2]
[334789801,1723569037851,-1757.41072631,0.00010783,2]
[334789802,1723569037862,-8733.22320206,0.00010783,2]
[334789803,1723569037883,-1788.39037466,0.00010783,2]
[334789804,1723569037894,-1051.74850456,0.00010783,2]
[334789805,1723569037905,-264.24,0.00010783,2]
[334789867,1723569041006,-44501.54924904,0.00010783,2]
[334789868,1723569041016,-773.543,0.00010783,2]
[334789869,1723569041025,-1528.5043,0.00010783,2]
[334789870,1723569041034,-3106.9302,0.00010783,2]
[334789871,1723569041043,-150.0,0.00010822,2]
[334789872,1723569041053,-150.0,0.00010823,2]
[334789873,1723569041062,-150.0,0.0001083,2]
[334789874,1723569041071,-150.0,0.00010838,2]
[334789875,1723569041080,-150.0,0.00010838,2]
[334789876,1723569041089,-5127.0,0.00010842,2]
[334789877,1723569041098,-2369.582,0.00010842,2]
[334789878,1723569041107,-1673.0,0.00010842,2]
[334789879,1723569041116,-21750.119,0.00010842,2]
[334789880,1723569041125,-1204.0,0.00010842,2]
[334789881,1723569041134,-1424.35,0.00010844,2]
[334789882,1723569041143,-150.0,0.00010845,2]
[334789883,1723569041152,-150.0,0.00010846,2]
[334789884,1723569041161,-150.0,0.00010851,2]
[334789885,1723569041170,-499.99,0.00010851,2]
[334789886,1723569041180,-167.60641119,0.00010868,2]
[334789887,1723569041189,-150.0,0.00010873,2]
[334789888,1723569041199,-150.0,0.0001088,2]
[334789889,1723569041207,-500.0,0.00010883,2]
[334789890,1723569041216,-1844.72806249,0.00010883,2]
[334789891,1723569041228,-312.004999,0.00010883,2]
[334789892,1723569041257,-523.52053851,0.00010883,2]
[334789893,1723569041267,-100000.0,0.00010883,2]
[334789894,1723569041276,-245000.0,0.00010883,2]
[334789895,1723569041285,-1111.124,0.00010883,2]
[334789896,1723569041294,-150.0,0.00010885,2]
[334789897,1723569041303,-150.0,0.00010887,2]
[334789898,1723569041312,-2146.02675,0.0001089,2]
[334789899,1723569041322,-158.31,0.0001089,2]
[334789900,1723569041331,-150.0,0.00010891,2]
[334789901,1723569041340,-150.0,0.00010898,2]
[334789902,1723569041349,-4139.34396963,0.000109,2]
[334789903,1723569041359,-169.46887535,0.000109,2]
[334789904,1723569041367,-1555.6762,0.000109,2]
[334789905,1723569041376,-168.91896574,0.000109,2]
[334789906,1723569041385,-1000.0,0.000109,2]
[334789907,1723569041397,-1049.99887276,0.000109,2]
[334789909,1723569041417,-534.50786604,0.000109,2]
[334789911,1723569041434,-150.0,0.00010903,2]
[334789913,1723569041452,-150.0,0.00010915,2]
[334789916,1723569041472,-150.0,0.00010919,2]
[334789918,1723569041490,-150.0,0.00010919,2]
[334789921,1723569041508,-150.0,0.0001093,2]
[334789924,1723569041525,-150.0,0.00010935,2]
[334789926,1723569041539,-150.0,0.00010938,2]
[334789929,1723569041557,-150.0,0.00010939,2]
[334789932,1723569041575,-150.0,0.00010945,2]
[334789935,1723569041593,-150.0,0.00010947,2]
[334789937,1723569041607,-150.0,0.00010949,2]
[334789940,1723569041626,-519.63477118,0.00010958,2]
[334789941,1723569041642,-150.0,0.00010959,2]
[334789942,1723569041660,-250.0,0.00010959,2]
[334789943,1723569041674,-150.0,0.00010967,2]
[334789944,1723569041697,-150.0,0.00010969,2]
[334789945,1723569041714,-200.0,0.00010973,2]
[334789946,1723569041730,-1583.0,0.0001098,2]
[334789947,1723569041746,-170.543,0.0001098,2]
[334789948,1723569041762,-1924.0,0.0001098,2]
[334789949,1723569041780,-1251.0,0.0001098,2]
[334789950,1723569041795,-556.0,0.0001098,2]
[334789951,1723569041811,-446.0,0.0001098,2]
[334789952,1723569041827,-1137.0,0.0001098,2]
[334789953,1723569041843,-810.0,0.0001098,2]
[334789954,1723569041858,-1895.0,0.0001098,2]
[334789955,1723569041875,-551.0,0.0001098,2]
[334789956,1723569041892,-1161.511,0.0001098,2]
[334789957,1723569041907,-3291.0,0.0001098,2]
[334789958,1723569041923,-247.0,0.0001098,2]
[334789959,1723569041942,-158.31,0.0001098,2]
[334789960,1723569041957,-1006.0,0.00010986,2]
[334789961,1723569041973,-197.69822989,0.00010987,2]
[334789962,1723569041988,-150.0,0.00010988,2]
[334789963,1723569042003,-158.31,0.0001099,2]
[334789964,1723569042019,-839755.05497458,0.0001099,2]
[334789965,1723569042035,-158.31,0.0001099,2]
[334789966,1723569042050,-158.31,0.0001099,2]
[334789967,1723569042065,-158.31,0.0001099,2]
[334789968,1723569042080,-158.31,0.0001099,2]
[334789969,1723569042095,-158.31,0.0001099,2]
[334789970,1723569042111,-158.31,0.0001099,2]
[334789971,1723569042127,-158.31,0.0001099,2]
[334789972,1723569042141,-158.31,0.0001099,2]
[334789973,1723569042156,-158.31,0.0001099,2]
[334789974,1723569042171,-158.31,0.0001099,2]
[334789975,1723569042188,-158.31,0.0001099,2]
[334789976,1723569042203,-158.31,0.0001099,2]
[334789977,1723569042218,-150.0,0.00010991,2]
[334789978,1723569042233,-150.0,0.00010994,2]
[334789979,1723569042248,-150.0,0.00010996,2]
[334789980,1723569042263,-5711.3967985,0.00010997,2]
[334789981,1723569042279,-114650.0507682,0.00010997,2]
[334789982,1723569042294,-604.356497,0.00010997,2]
[334789983,1723569042310,-751.49965305,0.00010999,3]
[334789984,1723569042325,-188.75297818,0.00010999,2]
[334789985,1723569042340,-3105.91221665,0.00010999,2]
[334789987,1723569042354,-88598.31484587,0.00011,2]
[334789988,1723569042369,-1535540.11988106,0.00011,2]
[334789992,1723569042985,-5690.0574,0.00011,2]
[334789995,1723569042998,-2866.79157415,0.00011,2]
[334789997,1723569043012,-612.31615536,0.00011,2]
[334790007,1723569043259,-64262.38401838,0.00011,2]
[334790008,1723569043351,-1329.54172578,0.00011,2]
[334790009,1723569044128,-10141.43628523,0.00011,2]
[334790010,1723569044139,-612.5168473,0.00011,2]
[334790011,1723569044151,-285.075,0.00011,2]
[334790012,1723569044162,-286843.73191427,0.00011,2]
[334790013,1723569044173,-1232.8790104,0.00011,2]
[334790025,1723569046791,-213.3434,0.00010683,2]
[334790026,1723569046800,-1027.56355886,0.0001078,2]
[334790027,1723569046811,-62.26997307,0.00010959,2]
[334790028,1723569046823,-87.73002693,0.00010959,2]
[334790029,1723569046832,-1600.68813989,0.00011,2]
[334790030,1723569046845,-266.39857557,0.00011,2]
[334790031,1723569046856,-4508.89416943,0.00011,2]
[334790032,1723569046868,-612.475,0.00011,2]
[334790033,1723569046879,-1864.87650638,0.00011,2]
[334790034,1723569046890,-24571.09859518,0.00011,2]
[334790035,1723569046902,-500.0,0.00011,2]
[334790036,1723569046927,-2087.08,0.00011,2]
[334790037,1723569046942,-1434.79165165,0.00011,2]
[334790038,1723569046955,-1584.77000004,0.00011,2]
[334790039,1723569046970,-500.15355008,0.00011,2]
[334790040,1723569046982,-1531.35632571,0.00011,2]
[334790041,1723569046993,-522.88362862,0.00011,2]
[334790042,1723569047004,-1404.11596762,0.00011,2]
[334790043,1723569047059,-745.46853528,0.00011,2]
[334790044,1723569047070,-4764.32648157,0.00011,2]
[334790045,1723569047081,-2924.57046392,0.00011,2]
[334790046,1723569047092,-818.55008395,0.00011,2]
[334790047,1723569047103,-295.21458624,0.00011,2]
[334790048,1723569047122,-6362.28804746,0.00011,2]
[334790377,1723569332682,234.28,8.219e-05,2]
[334790380,1723569510018,427.19,9.65e-05,2]
[334790381,1723569510790,379027.0,0.00025,60]
[334790382,1723569515718,1764.31293376,8.219e-05,2]
[334790383,1723569655736,703.3501,9.632e-05,2]
[334790384,1723569736172,3057.263527,9.632e-05,2]
[334790390,1723569917293,222.56,8.219e-05,2]
[334790391,1723570077224,517.021423,9.632e-05,2]
[334790429,1723570231896,-256.0,9.681e-05,2]
[334790430,1723570231906,-281.0,9.681e-05,2]
[334790431,1723570231916,-460.0,9.681e-05,2]
[334790432,1723570231926,-300.0,9.705e-05,2]
[334790433,1723570231936,-262.0,9.705e-05,2]
[334790434,1723570231945,-23900.0,9.706e-05,2]
[334790435,1723570231954,-150.0,9.776e-05,2]
[334790436,1723570231965,-459.02,9.777e-05,2]
[334790437,1723570231974,-1490.62274006,9.777e-05,2]
[334790438,1723570231985,-667.36237526,9.777e-05,2]
[334790439,1723570231996,-7000.00140534,9.777e-05,2]
[334790440,1723570232033,-1121.25510711,9.777e-05,2]
[334790441,1723570232043,-28636.61507884,9.777e-05,2]
[334790442,1723570232053,-1331.86,9.781e-05,2]
[334790443,1723570232062,-250.0,9.804e-05,2]
[334790444,1723570232071,-1000.0,9.887e-05,2]
[334790445,1723570232080,-168.98,9.9e-05,2]
[334790446,1723570232091,-151.15,9.954e-05,2]
[334790447,1723570232102,-499.99,9.954e-05,2]
[334790448,1723570232112,-1302.71,9.979e-05,2]
[334790449,1723570232123,-194.46,9.981e-05,2]
[334790451,1723570232261,-550.0,0.0001,2]
[334790453,1723570232272,-571.42598314,0.0001,2]
[334790455,1723570232282,-222.56,0.00010471,2]
[334790457,1723570232291,-150.0,0.00010478,2]
[334790459,1723570232300,-420.0,0.00010675,2]
[334790461,1723570232309,-1000.0,0.00010683,2]
[334790463,1723570232319,-3781.4284,0.00010683,2]
[334790465,1723570232328,-2409.3158,0.00010683,2]
[334790467,1723570232337,-150.0,0.00010731,2]
[334790469,1723570232347,-150.0,0.00010737,2]
[334790471,1723570232356,-255.0,0.00010754,2]
[334790473,1723570232366,-150.0,0.00010756,2]
[334790475,1723570232375,-1066.94058987,0.0001078,2]
[334790476,1723570232385,-1164.45703193,0.0001078,2]
[334790477,1723570232394,-1000.0,0.00010783,2]
[334790478,1723570232404,-97059.8441,0.00010783,2]
[334790479,1723570232413,-2000.0,0.00010783,2]
[334790480,1723570232422,-72027.5019,0.00010783,2]
[334790481,1723570232432,-1127.871,0.00010783,2]
[334790482,1723570232441,-5649.97944359,0.000108,2]
[334790483,1723570232451,-150.0,0.00010861,2]
[334790484,1723570232464,-150.0,0.00010864,2]
[334790485,1723570232479,-150.0,0.00010877,2]
[334790486,1723570232488,-152.30757,0.0001089,2]
[334790487,1723570232497,-1788.35563,0.0001089,2]
[334790488,1723570232506,-150.0,0.00010892,2]
[334790489,1723570232515,-150.0,0.00010897,2]
[334790490,1723570232524,-5798.09262615,0.00010899,2]
[334790491,1723570232533,-5798.09262609,0.00010899,2]
[334790492,1723570232543,-5798.09262609,0.00010899,2]
[334790493,1723570232552,-5798.09262609,0.00010899,2]
[334790494,1723570232562,-5798.09262609,0.00010899,2]
[334790495,1723570232571,-5798.09262609,0.00010899,2]
[334790496,1723570232580,-5798.09262609,0.00010899,2]
[334790497,1723570232589,-5798.09262609,0.00010899,2]
[334790498,1723570232599,-5798.09262609,0.00010899,2]
[334790499,1723570232608,-2233.04,0.000109,2]
[334790500,1723570232618,-547.5404988,0.000109,2]
[334790501,1723570232630,-341.42630098,0.000109,2]
[334790502,1723570232642,-418.90217464,0.000109,2]
[334790503,1723570232653,-1094.19023115,0.000109,2]
[334790504,1723570232680,-508.47198714,0.000109,2]
[334790505,1723570232691,-650.14882909,0.000109,2]
[334790506,1723570232702,-1323.01385731,0.000109,2]
[334790507,1723570232722,-633.33,0.000109,2]
[334790510,1723570237813,-160.07,0.00010156,2]
[334790511,1723570237823,-281.06874698,0.000109,2]
[334790512,1723570237833,-103.2321023,0.000109,2]
[334790513,1723570238070,-143.2726667,0.000109,2]
[334790514,1723570238081,-189.55387216,0.000109,2]
[334790515,1723570238090,-150.0,0.00010925,2]
[334790516,1723570238100,-150.0,0.00010934,2]
[334790517,1723570238110,-150.0,0.00010941,2]
[334790518,1723570238120,-150.0,0.00010943,2]
[334790519,1723570238130,-1000.0,0.00010959,2]
[334790520,1723570238143,-250.0,0.00010959,2]
[334790521,1723570238153,-200.0,0.00010973,2]
[334790522,1723570238162,-1137.0,0.0001098,2]
[334790523,1723570238171,-210.923,0.0001098,2]
[334790524,1723570238182,-765.469,0.0001098,2]
[334790525,1723570238191,-159.929,0.0001098,2]
[334790526,1723570238201,-546.293,0.0001098,2]
[334790527,1723570238213,-3291.0,0.0001098,2]
[334790528,1723570238224,-247.0,0.0001098,2]
[334790529,1723570238234,-1602.148,0.0001098,2]
[334790530,1723570238243,-48312.26482879,0.0001098,2]
[334790531,1723570238253,-64103.66254925,0.0001099,2]
[334790532,1723570238598,-1364.83123837,0.0001099,2]
[334790533,1723570238610,-1565.64,0.0001099,2]
[334790534,1723570238622,-33559.7710562,0.0001099,2]
[334790535,1723570238631,-150.0,0.00010991,2]
[334790536,1723570238640,-307.5462104,0.00010997,2]
[334790537,1723570238650,-19759.0819817,0.00010997,2]
[334790538,1723570238659,-16027.1022189,0.00010997,2]
[334790539,1723570238667,-11685.05954871,0.00010997,2]
[334790540,1723570238693,-277.86797384,0.00010997,2]
[334790541,1723570238706,-1698.02186945,0.00010997,2]
[334790542,1723570238739,-18071.41722401,0.00010997,2]
[334790543,1723570238751,-475.14527595,0.00010997,2]
[334790544,1723570238762,-12324.23825646,0.00010997,2]
[334790545,1723570238773,-1504.2,0.00010997,2]
[334790546,1723570238784,-279.36,0.00010997,2]
[334790547,1723570238849,-33764.62857204,0.00010997,2]
[334790548,1723570238858,-3361.93524863,0.00010998,2]
[334790549,1723570238867,-450.03,0.00010999,2]
[334790550,1723570238877,-118763.02164176,0.00011,2]
[334790551,1723570238886,-49070.52358987,0.00011,2]
[334790554,1723570239806,-338.0226125,0.00011,2]
[334790555,1723570239817,-1012.33670028,0.00011,2]
[334790556,1723570239900,-4285.81638443,0.00011,2]
[334790557,1723570239914,-320.10297877,0.00011,2]
[334790558,1723570239925,-587.72819476,0.00011,2]
[334790559,1723570239937,-1818.9,0.00011,2]
[334790560,1723570239950,-1352.08206824,0.00011,2]
[334790561,1723570239964,-696.7690233,0.00011,2]
[334790562,1723570239984,-68963.51653075,0.00011,2]
[334790563,1723570240010,-1086.34670665,0.00011,2]
[334790564,1723570240023,-14000.0,0.00011,2]
[334790565,1723570240034,-3455.53670671,0.00011,2]
[334790566,1723570240045,-9044.16638089,0.00011,2]
[334790567,1723570240057,-535.85788251,0.00011,2]
[334790568,1723570240069,-1534.61932229,0.00011,2]
[334790569,1723570240080,-2837.74696614,0.00011,2]
[334790570,1723570240097,-837.74750378,0.00011,2]
[334790571,1723570240195,-12901.75621573,0.00011,2]
[334790572,1723570240206,-359.58943198,0.00011,2]
[334790573,1723570240218,-309.38619049,0.00011,2]
[334790574,1723570240292,-32945.57700825,0.00011,2]
[334790575,1723570240304,-19357.1500304,0.00011,2]
[334790576,1723570240315,-12694.96982004,0.00011,2]
[334790577,1723570240327,-1031.00172718,0.00011,2]
[334790578,1723570240339,-48804.17125912,0.00011,2]
[334790579,1723570240350,-27089.17785513,0.00011,2]
[334790580,1723570240361,-1617.592005,0.00011,2]
[334790581,1723570240375,-1363.68834929,0.00011,2]
[334790583,1723570240387,-2023.404,0.00011,2]
[334790585,1723570240398,-2481.97911351,0.00011,2]
[334790631,1723570242838,-1120.370897,0.00011,2]
[334790635,1723570242940,-1058.55765,0.00011,2]
[334790636,1723570242952,-4986.26623947,0.00011,2]
[334790639,1723570242965,-1325.20799028,0.00011,2]
[334790641,1723570242977,-532.35328105,0.00011,2]
[334790643,1723570242989,-361.01292754,0.00011,2]
[334790645,1723570243089,-964.68916673,0.00011,2]
[334790646,1723570243101,-330.5,0.00011,2]
[334790647,1723570243113,-110931.50000003,0.00011,2]
[334790648,1723570243168,-2109.7800008,0.00011,2]
[334790649,1723570243215,-1469.59370028,0.00011,2]
[334790650,1723570243229,-669.24902375,0.00011,2]
[334790663,1723570247126,-1924.0,0.0001098,2]
[334790664,1723570247136,-6647.89705668,0.00011,2]
[334790665,1723570247148,-1967.4999995,0.00011,2]
[334790666,1723570247161,-379.89623438,0.00011,2]
[334790667,1723570247173,-2015.57078776,0.00011,2]
[334790668,1723570247189,-558.9,0.00011,2]
[334790669,1723570247201,-10240.9310637,0.00011,2]
[334790670,1723570247212,-3589.98717869,0.00011,2]
[334790671,1723570247225,-959.66047797,0.00011,2]
[334790672,1723570247261,-5177.5175671,0.00011,2]
[334790673,1723570247272,-8849.56618415,0.00011,2]
[334790674,1723570247283,-776.31930374,0.00011,2]
[334790675,1723570247294,-810.23492913,0.00011,2]
[334790676,1723570247305,-17714.41253113,0.00011,2]
[334790677,1723570247316,-422.24066894,0.00011,2]
[334790678,1723570247327,-582.27653367,0.00011,2]
[334790679,1723570247346,-1278.44042038,0.00011,2]
[334790680,1723570247357,-12136.4417712,0.00011,2]
[334790681,1723570247368,-15387.9933009,0.00011,2]
[334790682,1723570247379,-61801.49528378,0.00011,2]
[334790683,1723570247390,-19638.74163035,0.00011,2]
[334790684,1723570247402,-4972.96,0.00011,2]
[334790685,1723570247413,-19635.40584579,0.00011,2]
[334790686,1723570247424,-213609.06577852,0.00011,2]
[334790687,1723570247550,-1568.30176497,0.00011,2]
[334790688,1723570247568,-6154.01807628,0.00011,2]
[334790689,1723570247579,-765.67486631,0.00011,2]
[334790690,1723570247590,-324.95834368,0.00011,2]
[334790691,1723570247602,-35182.07915863,0.00011,2]
[334790692,1723570247613,-2318.42279138,0.00011,2]
[334790693,1723570247624,-924.64607863,0.00011,2]
[334790694,1723570247639,-470.22347517,0.00011,2]
[334790695,1723570247650,-2152.65565936,0.00011,2]
[334790696,1723570268394,10727.5796,9.581e-05,2]
[334790709,1723570430879,209.3,8.219e-05,2]
[334790710,1723570569290,1371.64874251,8.219e-05,2]
[334790711,1723570596699,963.74490173,8.219e-05,2]
[334790712,1723570596720,348.5355541,8.219e-05,2]
[334790713,1723570613490,3070.88521436,8.219e-05,2]
[334790714,1723570615493,6580.57923154,8.219e-05,2]
[334790715,1723570615513,10000.0,8.219e-05,2]
[334790716,1723570615532,10000.0,8.219e-05,2]
[334790717,1723570615555,77733.66763262,8.219e-05,2]
[334790718,1723570635891,2565.99588991,8.219e-05,2]
[334790719,1723570636345,-325.0,9.898e-05,2]
[334790720,1723570636371,-300.0,9.899e-05,2]
[334790721,1723570636394,-300.0,9.899e-05,2]
[334790722,1723570636416,-2834.53014604,9.899e-05,2]
[334790723,1723570636439,-250.0,9.9e-05,2]
[334790724,1723570636463,-15990.46985396,9.9e-05,2]
[334790725,1723570637596,-7909.53014604,9.9e-05,2]
[334790726,1723570637630,-12090.46985396,9.9e-05,2]
[334790727,1723570638179,20392.66258053,8.219e-05,2]
[334790728,1723570643666,-2320.0,9.9e-05,2]
[334790729,1723570656418,20392.66258053,8.219e-05,2]
[334790730,1723570668241,-2417.0,9.899e-05,2]
[334790731,1723570668265,-17583.0,9.9e-05,2]